fUST/lending_fUST_20241118
["ID","MTS","AMOUNT","RATE_DAILY","PERIOD"]
[342476333,1731919769829,-654.8,0.00014196,2]
[342476334,1731919769849,-1082.4,0.00014197,2]
[342476335,1731919769869,-454.72726533,0.00014198,2]
[342476336,1731919769889,-548.10664933,0.00014198,2]
[342476337,1731919769909,-504.41822854,0.00014198,2]
[342476338,1731919769929,-304.54262584,0.00014198,2]
[342476339,1731919769949,-500.0,0.00014198,2]
[342476340,1731919769969,-580.74596485,0.00014198,2]
[342476341,1731919769990,-500.0,0.00014198,2]
[342476342,1731919770010,-500.0,0.00014198,2]
[342476343,1731919770030,-591.5564777,0.00014198,2]
[342476344,1731919770052,-500.0,0.00014198,2]
[342476345,1731919770072,-541.39,0.00014198,2]
[342476346,1731919770096,-287.23585776,0.00014198,2]
[342476347,1731919770117,-500.0,0.00014198,2]
[342476348,1731919770137,-500.0,0.00014198,2]
[342476349,1731919770158,-500.0,0.00014198,2]
[342476350,1731919770178,-500.0,0.00014198,2]
[342476351,1731919770199,-379.53950499,0.00014198,2]
[342476352,1731919770219,-600.32,0.00014198,2]
[342476353,1731919770239,-1393.9,0.00014198,2]
[342476354,1731919770260,-1051.26,0.00014198,2]
[342476355,1731919770281,-701.42,0.00014198,2]
[342476356,1731919770309,-500.0,0.00014198,2]
[342476357,1731919770331,-500.0,0.00014198,2]
[342476358,1731919770351,-514.64006557,0.00014198,2]
[342476359,1731919770373,-500.0,0.00014198,2]
[342476360,1731919770395,-500.0,0.00014198,2]
[342476361,1731919770416,-626.5,0.00014198,2]
[342476362,1731919770436,-500.0,0.00014198,2]
[342476363,1731919770457,-503.77533289,0.00014198,2]
[342476364,1731919770479,-500.0,0.00014198,2]
[342476365,1731919770499,-500.0,0.00014198,2]
[342476366,1731919770520,-500.0,0.00014198,2]
[342476367,1731919770542,-500.0,0.00014198,2]
[342476368,1731919770563,-520.52,0.00014198,2]
[342476369,1731919770582,-610.55,0.00014198,2]
[342476370,1731919770603,-500.0,0.00014198,2]
[342476371,1731919770624,-500.0,0.00014198,2]
[342476372,1731919770643,-500.0,0.00014198,2]
[342476373,1731919770664,-505.21989059,0.00014198,2]
[342476374,1731919770684,-998.38,0.00014198,2]
[342476375,1731919770706,-500.0,0.00014198,2]
[342476376,1731919770726,-500.0,0.00014198,2]
[342476377,1731919770746,-500.0,0.00014198,2]
[342476378,1731919770765,-502.22857825,0.00014198,2]
[342476379,1731919770785,-500.0,0.00014198,2]
[342476380,1731919770806,-500.0,0.00014198,2]
[342476381,1731919770826,-500.0,0.00014198,2]
[342476382,1731919770845,-579.66489003,0.00014198,2]
[342476383,1731919770865,-500.0,0.00014198,2]
[342476384,1731919770886,-500.0,0.00014198,2]
[342476385,1731919770905,-500.0,0.00014198,2]
[342476386,1731919770927,-500.0,0.00014198,2]
[342476387,1731919770947,-278.90349593,0.00014198,2]
[342476388,1731919770966,-258.07097841,0.00014198,2]
[342476389,1731919770986,-500.0,0.00014198,2]
[342476390,1731919771215,-500.0,0.00014198,2]
[342476391,1731919771237,-500.0,0.00014198,2]
[342476392,1731919771262,-500.0,0.00014198,2]
[342476393,1731919771282,-500.0,0.00014198,2]
[342476394,1731919771314,-442.00120984,0.00014198,2]
[342476395,1731919771335,-744.02,0.00014198,2]
[342476396,1731919771360,-686.88,0.00014198,2]
[342476397,1731919771381,-500.0,0.00014198,2]
[342476398,1731919771404,-575.03,0.00014198,2]
[342476399,1731919771426,-504.0477703,0.00014198,2]
[342476400,1731919771447,-500.0,0.00014198,2]
[342476401,1731919771469,-153.59688624,0.00014198,2]
[342476402,1731919771490,-501.28235227,0.00014198,2]
[342476403,1731919771509,-500.0,0.00014198,2]
[342476404,1731919771529,-500.0,0.00014198,2]
[342476405,1731919771551,-581.29,0.00014198,2]
[342476406,1731919771571,-500.0,0.00014198,2]
[342476407,1731919771591,-500.0,0.00014198,2]
[342476408,1731919771611,-503.56931659,0.00014198,2]
[342476409,1731919771631,-1000.0,0.00014198,2]
[342476410,1731919771651,-1047.71,0.00014198,2]
[342476411,1731919771671,-500.0,0.00014198,2]
[342476412,1731919771691,-510.42,0.00014198,2]
[342476413,1731919771712,-749.53,0.00014198,2]
[342476414,1731919771732,-500.0,0.00014198,2]
[342476415,1731919771753,-500.0,0.00014198,2]
[342476416,1731919771773,-749.5,0.00014198,2]
[342476417,1731919771793,-501.20995849,0.00014198,2]
[342476418,1731919771813,-2316.24,0.00014198,2]
[342476419,1731919771834,-500.0,0.00014198,2]
[342476420,1731919771854,-500.0,0.00014198,2]
[342476421,1731919771874,-500.0,0.00014198,2]
[342476422,1731919771894,-675.89,0.00014198,2]
[342476423,1731919771914,-500.0,0.00014198,2]
[342476424,1731919771933,-1246.46,0.00014198,2]
[342476425,1731919771954,-500.0,0.00014198,2]
[342476426,1731919771973,-504.39514973,0.00014198,2]
[342476427,1731919771993,-507.76511537,0.00014198,2]
[342476428,1731919772014,-728.33,0.00014198,2]
[342476429,1731919772034,-501.79,0.00014198,2]
[342476430,1731919772056,-502.13472043,0.00014198,2]
[342476431,1731919772077,-924.58,0.00014198,2]
[342476432,1731919772097,-924.58,0.00014198,2]
[342476433,1731919772117,-1019.77,0.00014198,2]
[342476434,1731919772137,-504.00747353,0.00014198,2]
[342476435,1731919772158,-226.29011493,0.00014198,2]
[342476436,1731919772178,-500.0,0.00014198,2]
[342476437,1731919772198,-500.0,0.00014198,2]
[342476438,1731919772218,-500.0,0.00014198,2]
[342476439,1731919772238,-500.0,0.00014198,2]
[342476440,1731919772260,-500.0,0.00014198,2]
[342476441,1731919772280,-1271.14,0.00014198,2]
[342476442,1731919772306,-616.75,0.00014198,2]
[342476443,1731919772328,-500.0,0.00014198,2]
[342476444,1731919772348,-500.0,0.00014198,2]
[342476445,1731919772368,-500.0,0.00014198,2]
[342476446,1731919772388,-500.5009647,0.00014198,2]
[342476447,1731919772409,-328.73285541,0.00014198,2]
[342476448,1731919772429,-804.25,0.00014198,2]
[342476449,1731919772449,-500.0,0.00014198,2]
[342476450,1731919772469,-500.23965361,0.00014198,2]
[342476451,1731919772489,-500.0,0.00014198,2]
[342476452,1731919772511,-501.47486581,0.00014198,2]
[342476453,1731919772532,-502.4455168,0.00014198,2]
[342476454,1731919772556,-500.25427346,0.00014198,2]
[342476455,1731919772578,-500.0,0.00014198,2]
[342476456,1731919772599,-500.0,0.00014198,2]
[342476457,1731919772621,-500.0,0.00014198,2]
[342476458,1731919772642,-501.89751839,0.00014198,2]
[342476459,1731919772664,-500.0,0.00014198,2]
[342476460,1731919772684,-159.78502586,0.00014198,2]
[342476461,1731919772705,-686.29,0.00014198,2]
[342476462,1731919772728,-500.0,0.00014198,2]
[342476463,1731919772750,-429.24116003,0.00014198,2]
[342476464,1731919772771,-1019.4,0.00014198,2]
[342476465,1731919772794,-501.03545153,0.00014198,2]
[342476466,1731919772815,-817.79,0.00014198,2]
[342476467,1731919772835,-500.0,0.00014198,2]
[342476468,1731919772855,-501.23617287,0.00014198,2]
[342476469,1731919772876,-1398.72,0.00014198,2]
[342476470,1731919772898,-500.0,0.00014198,2]
[342476471,1731919772920,-2097.47,0.00014198,2]
[342476472,1731919772941,-645.37126756,0.00014198,2]
[342476473,1731919772963,-501.40677554,0.00014198,2]
[342476474,1731919772984,-500.0,0.00014198,2]
[342476475,1731919773005,-1078.6,0.00014198,2]
[342476476,1731919773027,-501.17187806,0.00014198,2]
[342476477,1731919773049,-636.65280202,0.00014198,2]
[342476478,1731919773070,-500.0,0.00014198,2]
[342476479,1731919773091,-500.0,0.00014198,2]
[342476480,1731919773112,-500.0,0.00014198,2]
[342476481,1731919773133,-1843.65,0.00014198,2]
[342476482,1731919773154,-787.77,0.00014198,2]
[342476483,1731919773175,-511.76,0.00014198,2]
[342476484,1731919773196,-2121.76,0.00014198,2]
[342476485,1731919773218,-500.0,0.00014198,2]
[342476486,1731919773239,-3992.97,0.00014198,2]
[342476487,1731919773260,-535.76,0.00014198,2]
[342476488,1731919773282,-500.0,0.00014198,2]
[342476489,1731919773308,-507.4348667,0.00014198,2]
[342476490,1731919773329,-500.0,0.00014198,2]
[342476491,1731919773351,-500.0,0.00014198,2]
[342476492,1731919773373,-195.48234286,0.00014198,2]
[342476493,1731919773395,-502.25030157,0.00014198,2]
[342476494,1731919773416,-845.16,0.00014198,2]
[342476495,1731919773437,-505.11707985,0.00014198,2]
[342476496,1731919773458,-518.31574023,0.00014198,2]
[342476497,1731919773481,-503.99414262,0.00014198,2]
[342476498,1731919773504,-504.14351048,0.00014198,2]
[342476499,1731919773525,-503.41586229,0.00014198,2]
[342476500,1731919773549,-500.0,0.00014198,2]
[342476501,1731919773570,-1839.98,0.00014198,2]
[342476502,1731919773592,-597.39020652,0.00014198,2]
[342476503,1731919773614,-500.0,0.00014198,2]
[342476504,1731919773636,-500.0,0.00014198,2]
[342476505,1731919773665,-152.347619,0.00014198,2]
[342476506,1731919773687,-1496.24,0.00014198,2]
[342476507,1731919773710,-151.0,0.00014198,2]
[342476508,1731919773731,-151.0,0.00014198,2]
[342476509,1731919773754,-504.04063277,0.00014198,2]
[342476510,1731919773775,-500.0,0.00014198,2]
[342476511,1731919773799,-1492.35,0.00014198,2]
[342476512,1731919773820,-502.17329657,0.00014198,2]
[342476513,1731919773842,-500.0,0.00014198,2]
[342476514,1731919773863,-500.0,0.00014198,2]
[342476515,1731919773884,-500.0,0.00014198,2]
[342476516,1731919773905,-510.86911605,0.00014198,2]
[342476517,1731919773927,-503.26622678,0.00014198,2]
[342476518,1731919773948,-500.0,0.00014198,2]
[342476519,1731919773969,-151.0,0.00014198,2]
[342476520,1731919773991,-151.0,0.00014198,2]
[342476521,1731919774012,-500.0,0.00014198,2]
[342476522,1731919774033,-151.0,0.00014198,2]
[342476523,1731919774062,-500.0,0.00014198,2]
[342476524,1731919774084,-543.53,0.00014198,2]
[342476525,1731919774106,-500.87103584,0.00014198,2]
[342476526,1731919774128,-2000.0,0.00014198,2]
[342476527,1731919774151,-150.112233,0.000144,2]
[342476528,1731919774173,-211.00066,0.000144,2]
[342476529,1731919774194,-1730.15,0.00014468,2]
[342476530,1731919774219,-6731.68,0.00014468,2]
[342476531,1731919774242,-1029.04,0.00014468,2]
[342476532,1731919774263,-4581.05,0.00014468,2]
[342476533,1731919774284,-339.55633484,0.00014469,2]
[342476534,1731919774307,-500.0,0.00014469,2]
[342476535,1731919774329,-1079.54,0.00014469,2]
[342476536,1731919774351,-500.0,0.00014469,2]
[342476537,1731919774372,-500.0,0.00014469,2]
[342476538,1731919774394,-39427.71,0.00014469,2]
[342476539,1731919774416,-1497.96,0.00014469,2]
[342476540,1731919774437,-418.79481934,0.00014469,2]
[342476541,1731919774458,-500.0,0.00014469,2]
[342476542,1731919774481,-3665.76,0.00014469,2]
[342476543,1731919774504,-500.0,0.00014469,2]
[342476544,1731919774525,-152.612161,0.00014469,2]
[342476545,1731919774549,-1231.34,0.00014469,2]
[342476546,1731919774571,-723.34,0.00014469,2]
[342476547,1731919774591,-719.45,0.00014469,2]
[342476548,1731919774612,-710.31,0.00014469,2]
[342476549,1731919774633,-2538.2,0.00014469,2]
[342476550,1731919774656,-1290.06,0.00014469,2]
[342476551,1731919774678,-500.0,0.00014469,2]
[342476552,1731919774700,-1181.08,0.00014469,2]
[342476553,1731919774722,-503.41,0.00014469,2]
[342476554,1731919774745,-626.73367133,0.00014469,2]
[342476555,1731919774767,-500.0,0.00014469,2]
[342476556,1731919774792,-853.25,0.00014469,2]
[342476557,1731919774815,-907.49,0.00014469,2]
[342476558,1731919774835,-500.0,0.00014469,2]
[342476559,1731919774855,-591.20363297,0.00014469,2]
[342476560,1731919774875,-1573.39,0.00014469,2]
[342476561,1731919774895,-500.0,0.00014469,2]
[342476562,1731919774916,-500.0,0.00014469,2]
[342476563,1731919774937,-500.0,0.00014469,2]
[342476564,1731919774957,-645.87,0.00014469,2]
[342476565,1731919774978,-162.51509,0.00014469,2]
[342476566,1731919774998,-609.45305495,0.00014469,2]
[342476567,1731919775020,-5979.68,0.00014469,2]
[342476568,1731919775232,-500.0,0.00014469,2]
[342476569,1731919775253,-503.09342391,0.00014469,2]
[342476570,1731919775276,-500.0,0.00014469,2]
[342476571,1731919775301,-206.02818272,0.00014469,2]
[342476572,1731919775322,-151.0,0.00014469,2]
[342476573,1731919775344,-691.98,0.00014469,2]
[342476574,1731919775365,-500.0,0.00014469,2]
[342476575,1731919775387,-542.91784385,0.0001447,2]
[342476576,1731919775406,-500.0,0.0001447,2]
[342476577,1731919775427,-1600.58,0.0001447,2]
[342476578,1731919775447,-500.0,0.0001447,2]
[342476579,1731919775468,-500.0,0.0001447,2]
[342476580,1731919775489,-411.49483988,0.0001447,2]
[342476581,1731919775509,-259.9356035,0.0001447,2]
[342476582,1731919775530,-1175.61,0.0001447,2]
[342476583,1731919775552,-500.0,0.0001447,2]
[342476584,1731919775573,-1147.78,0.0001447,2]
[342476585,1731919775594,-500.0,0.0001447,2]
[342476586,1731919775615,-500.0,0.0001447,2]
[342476587,1731919775636,-500.0,0.0001447,2]
[342476588,1731919775656,-500.0,0.0001447,2]
[342476589,1731919775678,-500.0,0.0001447,2]
[342476590,1731919775699,-370.92743716,0.0001447,2]
[342476591,1731919775721,-500.0,0.0001447,2]
[342476592,1731919775741,-779.21,0.0001447,2]
[342476593,1731919775761,-2217.81,0.0001447,2]
[342476594,1731919775782,-500.0,0.0001447,2]
[342476595,1731919775809,-991.21,0.0001447,2]
[342476596,1731919775831,-2336.0,0.0001447,2]
[342476597,1731919775851,-885.57,0.0001447,2]
[342476598,1731919775872,-500.0,0.0001447,2]
[342476599,1731919775892,-500.0,0.0001447,2]
[342476600,1731919775915,-151.0,0.0001447,2]
[342476601,1731919775936,-1157.22,0.0001447,2]
[342476602,1731919775958,-770.42,0.0001447,2]
[342476603,1731919775981,-564.27,0.0001447,2]
[342476604,1731919776002,-151.0,0.0001447,2]
[342476605,1731919776027,-1130.39,0.0001447,2]
[342476606,1731919776050,-680.09,0.0001447,2]
[342476607,1731919776071,-500.0,0.0001447,2]
[342476608,1731919776093,-620.97,0.0001447,2]
[342476609,1731919776114,-1570.01,0.0001447,2]
[342476610,1731919776136,-1235.43,0.0001447,2]
[342476611,1731919776157,-500.0,0.0001447,2]
[342476612,1731919776178,-1725.51,0.0001447,2]
[342476613,1731919776199,-3196.15,0.0001447,2]
[342476614,1731919776220,-500.0,0.0001447,2]
[342476615,1731919776241,-6423.53,0.0001447,2]
[342476616,1731919776263,-627.64,0.0001447,2]
[342476617,1731919776284,-1531.81,0.0001447,2]
[342476618,1731919776310,-712.28,0.0001447,2]
[342476619,1731919776330,-1044.13,0.0001447,2]
[342476620,1731919776353,-502.4465076,0.0001447,2]
[342476621,1731919776376,-739.26,0.0001447,2]
[342476622,1731919776397,-674.86,0.0001447,2]
[342476623,1731919776419,-606.48,0.0001447,2]
[342476624,1731919776441,-349.64984767,0.0001447,2]
[342476625,1731919776469,-1741.76,0.0001447,2]
[342476626,1731919776494,-643.5,0.0001447,2]
[342476627,1731919776525,-23322.42,0.0001447,2]
[342476628,1731919776550,-500.0,0.0001447,2]
[342476629,1731919776575,-151.0,0.0001447,2]
[342476630,1731919776603,-13537.87,0.0001447,2]
[342476631,1731919776627,-151.0,0.0001447,2]
[342476632,1731919776650,-500.0,0.0001447,2]
[342476633,1731919776673,-500.0,0.0001447,2]
[342476634,1731919776696,-647.04,0.0001447,2]
[342476635,1731919776717,-500.0,0.0001447,2]
[342476636,1731919776748,-500.0,0.0001447,2]
[342476637,1731919776781,-1318.1,0.0001447,2]
[342476638,1731919776805,-500.0,0.0001447,2]
[342476639,1731919776826,-611.9,0.0001447,2]
[342476640,1731919776847,-1721.14,0.0001447,2]
[342476641,1731919776870,-411.51966948,0.0001447,2]
[342476642,1731919776892,-500.0,0.0001447,2]
[342476643,1731919776914,-500.0,0.0001447,2]
[342476644,1731919776935,-151.0,0.0001447,2]
[342476645,1731919776958,-2731.61,0.0001447,2]
[342476646,1731919776979,-151.0,0.0001447,2]
[342476647,1731919776999,-962.84,0.0001447,2]
[342476648,1731919777020,-500.0,0.0001447,2]
[342476649,1731919777041,-756.17,0.0001447,2]
[342476650,1731919777063,-843.4,0.0001447,2]
[342476651,1731919777084,-500.0,0.0001447,2]
[342476652,1731919777106,-151.0,0.0001447,2]
[342476653,1731919777128,-500.0,0.0001447,2]
[342476654,1731919777150,-654.8,0.0001447,2]
[342476655,1731919777171,-238.748882,0.00014471,2]
[342476656,1731919777192,-238.748882,0.00014471,2]
[342476657,1731919777213,-238.748882,0.00014471,2]
[342476658,1731919777234,-238.748882,0.00014471,2]
[342476659,1731919777256,-153.527983,0.00014471,2]
[342476660,1731919777276,-151.0,0.00014471,2]
[342476661,1731919777301,-151.0,0.00014471,2]
[342476662,1731919777322,-151.0,0.00014471,2]
[342476663,1731919777343,-797.518417,0.00014471,2]
[342476664,1731919777364,-151.0,0.00014471,2]
[342476665,1731919777387,-797.518417,0.00014471,2]
[342476666,1731919777407,-151.0,0.00014471,2]
[342476667,1731919777428,-151.0,0.00014471,2]
[342476668,1731919777449,-1082.4,0.00014471,2]
[342476669,1731919777470,-151.0,0.00014471,2]
[342476670,1731919777498,-151.0,0.00014471,2]
[342476671,1731919777518,-151.0,0.00014471,2]
[342476672,1731919777540,-151.0,0.00014471,2]
[342476673,1731919777563,-151.0,0.00014471,2]
[342476674,1731919777590,-154.437908,0.00014471,2]
[342476675,1731919777611,-151.0,0.00014471,2]
[342476676,1731919777632,-500.0,0.00014472,2]
[342476677,1731919777653,-555.1934003,0.00014472,2]
[342476678,1731919777674,-500.0,0.00014472,2]
[342476679,1731919777694,-500.0,0.00014472,2]
[342476680,1731919777715,-541.39,0.00014472,2]
[342476681,1731919777736,-500.0,0.00014472,2]
[342476682,1731919777757,-500.0,0.00014472,2]
[342476683,1731919777778,-500.0,0.00014472,2]
[342476684,1731919777801,-500.0,0.00014472,2]
[342476685,1731919777824,-600.32,0.00014472,2]
[342476686,1731919777845,-1393.9,0.00014472,2]
[342476687,1731919777867,-1051.26,0.00014472,2]
[342476688,1731919777888,-701.42,0.00014472,2]
[342476689,1731919777910,-500.0,0.00014472,2]
[342476690,1731919777933,-500.0,0.00014472,2]
[342476691,1731919777953,-500.0,0.00014472,2]
[342476692,1731919777974,-481.7773329,0.00014472,2]
[342476693,1731919777995,-626.5,0.00014472,2]
[342476694,1731919778016,-500.0,0.00014472,2]
[342476695,1731919778037,-500.0,0.00014472,2]
[342476696,1731919778059,-500.0,0.00014472,2]
[342476697,1731919778080,-500.0,0.00014472,2]
[342476698,1731919778101,-500.0,0.00014472,2]
[342476699,1731919778123,-520.52,0.00014472,2]
[342476700,1731919778143,-610.55,0.00014472,2]
[342476701,1731919778163,-500.0,0.00014472,2]
[342476702,1731919778184,-151.0,0.00014472,2]
[342476703,1731919778205,-151.0,0.00014472,2]
[342476704,1731919778225,-500.0,0.00014472,2]
[342476705,1731919778247,-500.0,0.00014472,2]
[342476706,1731919778267,-998.38,0.00014472,2]
[342476707,1731919778288,-500.0,0.00014472,2]
[342476708,1731919778311,-344.779304,0.00014472,2]
[342476709,1731919778331,-219.64171068,0.00014472,2]
[342476710,1731919778352,-500.0,0.00014472,2]
[342476711,1731919778374,-500.0,0.00014472,2]
[342476712,1731919778396,-500.0,0.00014472,2]
[342476713,1731919778418,-500.0,0.00014472,2]
[342476714,1731919778441,-500.0,0.00014472,2]
[342476715,1731919778462,-500.0,0.00014472,2]
[342476716,1731919778488,-500.0,0.00014472,2]
[342476717,1731919778509,-250.24671776,0.00014472,2]
[342476718,1731919778530,-500.0,0.00014472,2]
[342476719,1731919778552,-505.99957473,0.00014472,2]
[342476720,1731919778574,-387.24688194,0.00014472,2]
[342476721,1731919778595,-744.02,0.00014472,2]
[342476722,1731919778615,-686.88,0.00014472,2]
[342476723,1731919778636,-575.03,0.00014472,2]
[342476724,1731919778657,-500.0,0.00014472,2]
[342476725,1731919778678,-500.0,0.00014472,2]
[342476726,1731919778700,-500.0,0.00014472,2]
[342476727,1731919778721,-581.29,0.00014472,2]
[342476728,1731919778742,-500.0,0.00014472,2]
[342476729,1731919778764,-153.178094,0.00014472,2]
[342476730,1731919778786,-153.178094,0.00014472,2]
[342476731,1731919778808,-1000.0,0.00014472,2]
[342476732,1731919778832,-153.178094,0.00014472,2]
[342476733,1731919778853,-153.178094,0.00014472,2]
[342476734,1731919778874,-1047.71,0.00014472,2]
[342476735,1731919778895,-500.0,0.00014472,2]
[342476736,1731919778916,-510.42,0.00014472,2]
[342476737,1731919778938,-749.53,0.00014472,2]
[342476738,1731919778962,-500.0,0.00014472,2]
[342476739,1731919778983,-500.0,0.00014472,2]
[342476740,1731919779004,-749.5,0.00014472,2]
[342476741,1731919779025,-2316.24,0.00014472,2]
[342476742,1731919779046,-500.0,0.00014472,2]
[342476743,1731919779067,-500.0,0.00014472,2]
[342476744,1731919779280,-675.89,0.00014472,2]
[342476745,1731919779310,-500.0,0.00014472,2]
[342476746,1731919779333,-1246.46,0.00014472,2]
[342476747,1731919779354,-181.527558,0.00014472,2]
[342476748,1731919779377,-500.0,0.00014472,2]
[342476749,1731919779400,-238.748882,0.00014472,2]
[342476750,1731919779422,-181.527558,0.00014472,2]
[342476751,1731919779443,-238.748882,0.00014472,2]
[342476752,1731919779465,-728.33,0.00014472,2]
[342476753,1731919779494,-501.79,0.00014472,2]
[342476754,1731919779523,-924.58,0.00014472,2]
[342476755,1731919779544,-924.58,0.00014472,2]
[342476756,1731919779567,-924.58,0.00014472,2]
[342476757,1731919779590,-1019.77,0.00014472,2]
[342476758,1731919779612,-500.0,0.00014472,2]
[342476759,1731919779634,-500.0,0.00014472,2]
[342476760,1731919779656,-500.0,0.00014472,2]
[342476761,1731919779678,-500.0,0.00014472,2]
[342476762,1731919779699,-1271.14,0.00014472,2]
[342476763,1731919779721,-616.75,0.00014472,2]
[342476764,1731919779742,-500.0,0.00014472,2]
[342476765,1731919779764,-500.0,0.00014472,2]
[342476766,1731919779785,-502.31159393,0.00014472,2]
[342476767,1731919779809,-151.0,0.00014472,2]
[342476768,1731919779833,-151.0,0.00014472,2]
[342476769,1731919779855,-151.0,0.00014472,2]
[342476770,1731919779876,-151.0,0.00014472,2]
[342476771,1731919779898,-151.0,0.00014472,2]
[342476772,1731919779919,-804.25,0.00014472,2]
[342476773,1731919779941,-500.0,0.00014472,2]
[342476774,1731919779962,-500.0,0.00014472,2]
[342476775,1731919779986,-502.44054992,0.00014472,2]
[342476776,1731919780007,-151.0,0.00014472,2]
[342476777,1731919780029,-486.23376944,0.00014472,2]
[342476778,1731919780052,-500.0,0.00014472,2]
[342476779,1731919780073,-500.0,0.00014472,2]
[342476780,1731919780094,-686.29,0.00014472,2]
[342476781,1731919780115,-797.518417,0.00014472,2]
[342476782,1731919780136,-797.518417,0.00014472,2]
[342476783,1731919780158,-1442.279044,0.00014472,2]
[342476784,1731919780179,-500.0,0.00014472,2]
[342476785,1731919780200,-1442.279044,0.00014472,2]
[342476786,1731919780221,-151.0,0.00014472,2]
[342476787,1731919780242,-797.518417,0.00014472,2]
[342476788,1731919780264,-797.518417,0.00014472,2]
[342476789,1731919780286,-1019.4,0.00014472,2]
[342476790,1731919780309,-151.0,0.00014472,2]
[342476791,1731919780332,-817.79,0.00014472,2]
[342476792,1731919780354,-503.34503885,0.00014472,2]
[342476793,1731919780375,-1213.106776,0.00014472,2]
[342476794,1731919780398,-1213.106776,0.00014472,2]
[342476795,1731919780419,-1213.106776,0.00014472,2]
[342476796,1731919780440,-1213.106776,0.00014472,2]
[342476797,1731919780462,-1398.72,0.00014472,2]
[342476798,1731919780482,-500.0,0.00014472,2]
[342476799,1731919780503,-2097.47,0.00014472,2]
[342476800,1731919780524,-500.0,0.00014472,2]
[342476801,1731919780544,-1078.6,0.00014472,2]
[342476802,1731919780567,-500.0,0.00014472,2]
[342476803,1731919780587,-500.0,0.00014472,2]
[342476804,1731919780609,-503.98373145,0.00014472,2]
[342476805,1731919780631,-1843.65,0.00014472,2]
[342476806,1731919780653,-787.77,0.00014472,2]
[342476807,1731919780674,-511.76,0.00014472,2]
[342476808,1731919780697,-2121.76,0.00014472,2]
[342476809,1731919780719,-500.0,0.00014472,2]
[342476810,1731919780740,-3992.97,0.00014472,2]
[342476811,1731919780761,-535.76,0.00014472,2]
[342476812,1731919780785,-582.91644974,0.00014472,2]
[342476813,1731919780809,-500.0,0.00014472,2]
[342476814,1731919780829,-500.0,0.00014472,2]
[342476815,1731919780852,-845.16,0.00014472,2]
[342476816,1731919780873,-500.0,0.00014472,2]
[342476817,1731919780903,-1839.98,0.00014472,2]
[342476818,1731919780926,-500.0,0.00014472,2]
[342476819,1731919780948,-500.0,0.00014472,2]
[342476820,1731919780970,-1496.24,0.00014472,2]
[342476821,1731919780993,-151.0,0.00014472,2]
[342476822,1731919781015,-151.0,0.00014472,2]
[342476823,1731919781037,-151.0,0.00014472,2]
[342476824,1731919781060,-151.0,0.00014472,2]
[342476825,1731919781082,-1492.35,0.00014472,2]
[342476826,1731919781105,-500.0,0.00014472,2]
[342476827,1731919781127,-500.0,0.00014472,2]
[342476828,1731919781150,-500.0,0.00014472,2]
[342476829,1731919781172,-500.0,0.00014472,2]
[342476830,1731919781193,-500.0,0.00014472,2]
[342476831,1731919781216,-151.0,0.00014472,2]
[342476832,1731919781239,-151.0,0.00014472,2]